bitfinex/quotes_SOLUSD_20251030
["timestamp","ask_amount","ask_price","bid_price","bid_amount"]
[1761800758091,1.99999999,192.01,191.97,18.23174619]
[1761800758299,1.99999999,192.01,191.98,5.21588882]
[1761800758879,1.99999999,192.01,191.99,5.20860461]
[1761800759498,1.99999999,192.01,191.94,21.302]
[1761800759776,1.99999999,191.99,191.96,5.21588882]
[1761800760178,1.99999999,191.99,191.97,5.21588882]
[1761800760380,1.99999999,192.0,191.97,5.21588882]
[1761800760804,1.99999999,192.0,191.98,5.21588882]
[1761800760975,1.99999999,192.0,191.97,5.21588882]
[1761800761183,3.37107556,191.99,191.94,10.42578029]
[1761800761391,1.99999999,191.96,191.94,5.20989147]
[1761800761801,1.99999999,191.96,191.94,10.42578029]
[1761800762114,1.99999999,191.96,191.94,11.13578029]
[1761800762616,1.99999999,191.96,191.94,5.21588882]
[1761800762915,1.99999999,191.96,191.95,5.21588882]
[1761800763210,1.99999999,191.99,191.95,5.92588882]
[1761800763395,1.99999999,191.99,191.97,5.21588882]
[1761800763599,1.99999999,192.0,191.97,5.21588882]
[1761800763784,1.99999999,191.99,191.96,0.71]
[1761800763989,5.21588882,192.04,191.89,5.21131898]
[1761800763990,1.99999999,191.94,191.89,5.21131898]
[1761800764312,1.99999999,191.94,191.88,0.71]
[1761800764313,1.99999999,191.91,191.88,5.21588882]
[1761800764517,1.99999999,191.94,191.9,5.21588882]
[1761800764719,1.99999999,191.94,191.91,5.21588882]
[1761800764879,1.99999999,191.94,191.91,5.21077588]
[1761800765290,1.99999999,191.91,191.88,5.21588882]
[1761800765592,1.99999999,191.89,191.83,5.2127232]
[1761800765793,1.99999999,191.85,191.83,5.2127232]
[1761800766003,1.99999999,191.85,191.83,10.42861202]
[1761800766207,1.99999999,191.85,191.83,0.71]
[1761800766489,1.99999999,191.85,191.81,10.42911272]
[1761800766690,1.99999999,191.85,191.81,11.13911272]
[1761800767101,1.99999999,191.85,191.83,5.21588882]
[1761800767332,1.99999999,191.87,191.84,5.21588882]
[1761800767614,0.72,191.93,191.86,5.21588882]
[1761800767615,1.99999999,191.9,191.86,5.21588882]
[1761800767820,5.21588882,191.95,191.89,5.21588882]
[1761800767821,1.99999999,191.91,191.89,5.21588882]
[1761800768126,1.99999999,191.95,191.9,5.21588882]
[1761800768419,1.99999999,191.94,191.91,5.21588882]
[1761800768618,0.65117732,191.96,191.9,5.21588882]
[1761800768619,1.99999999,191.93,191.9,5.21588882]
[1761800768782,1.99999999,191.94,191.9,5.21588882]
[1761800768983,1.99999999,191.95,191.92,5.21050437]
[1761800769304,1.99999999,191.97,191.93,7.21953071]
[1761800769619,1.99999999,191.96,191.93,7.21953071]
[1761800769928,1.99999999,191.96,191.92,12.43003508]
[1761800770102,1.99999999,191.97,191.92,12.43003508]
[1761800770416,1.99999999,191.95,191.89,0.71]
[1761800770619,1.99999999,191.92,191.89,7.21953071]
[1761800770828,0.65124518,191.94,191.84,25.80464459]
[1761800770829,1.99999999,191.9,191.84,25.80464459]
[1761800771126,1.99999999,191.87,191.86,7.21953071]
[1761800771420,1.99999999,191.87,191.85,7.21953071]
[1761800771599,1.99999999,191.86,191.84,0.71]
[1761800771799,1.99999999,191.86,191.84,7.92953071]
[1761800771996,1.99999999,191.86,191.85,7.21953071]
[1761800772601,1.99999999,191.86,191.85,7.92953071]
[1761800773215,1.99999999,191.87,191.85,13.14193623]
[1761800773422,1.99999999,191.88,191.85,13.14193623]
[1761800773621,1.99999999,191.87,191.86,7.21953071]
[1761800773919,1.99999999,191.86,191.85,7.92953071]
[1761800774105,1.99999999,191.88,191.85,7.92953071]
[1761800774309,1.99999999,191.89,191.85,7.92953071]
[1761800774515,1.99999999,191.89,191.86,7.21953071]
[1761800774813,1.99999999,191.87,191.86,7.21953071]
[1761800775192,1.99999999,191.85,191.84,7.21953071]
[1761800775392,1.99999999,191.87,191.84,13.10220794]
[1761800775692,1.99999999,191.87,191.85,7.21953071]
[1761800776012,1.99999999,191.91,191.86,7.21953071]
[1761800776219,1.99999999,191.9,191.88,7.21953071]
[1761800776389,1.99999999,191.89,191.88,7.21953071]
[1761800776821,1.99999999,191.89,191.88,7.88953071]
[1761800777428,1.99999999,191.89,191.88,13.10112128]
[1761800777799,1.99999999,191.89,191.86,7.21953071]
[1761800777996,1.99999999,191.89,191.88,7.21953071]
[1761800778204,1.99999999,191.9,191.87,0.67]
[1761800778394,0.65121125,191.95,191.87,0.67]
[1761800778395,1.99999999,191.91,191.89,7.21953071]
[1761800778604,1.99999999,191.92,191.9,7.21953071]
[1761800778914,1.99999999,191.93,191.91,7.21953071]
[1761800779114,1.99999999,191.95,191.92,7.21953071]
[1761800779312,1.99999999,191.95,191.92,12.42999543]
[1761800779517,1.99999999,191.95,191.87,0.26243577]
[1761800779692,1.99999999,191.95,191.92,7.21953071]
[1761800780197,8.5806402,191.98,191.92,7.21953071]
[1761800780198,1.99999999,191.96,191.92,0.67]
[1761800780400,1.99999999,191.96,191.92,7.88953071]
[1761800780799,1.99999999,191.96,191.93,7.21953071]
[1761800781119,1.99999999,191.95,191.93,7.21953071]
[1761800781291,1.99999999,191.93,191.92,7.88953071]
[1761800781621,1.99999999,191.94,191.91,7.21953071]
[1761800781805,1.99999999,191.92,191.91,7.21953071]
[1761800782009,1.99999999,191.95,191.91,7.88953071]
[1761800782205,1.99999999,191.96,191.93,7.21953071]
[1761800782397,1.99999999,191.96,191.95,7.21953071]
[1761800782910,1.99999999,191.96,191.95,7.87953071]
[1761800783310,1.99999999,191.96,191.95,5.86969002]
[1761800783523,1.99999999,191.96,191.95,13.08922073]
[1761800783920,1.99999999,191.96,191.95,7.21953071]
[1761800784107,1.99999999,191.96,191.95,7.87953071]
[1761800784999,1.99999999,191.96,191.92,5.87025841]
[1761800785205,1.99999999,191.95,191.93,0.66]
[1761800785724,1.99999999,191.95,191.94,5.20996144]
[1761800786223,1.99999999,191.96,191.94,13.08949215]
[1761800786412,1.99999999,191.96,191.95,7.21953071]
[1761800786609,1.99999999,191.96,191.95,7.87953071]
[1761800786816,1.99999999,192.02,191.95,7.87953071]
[1761800787125,1.99999999,192.03,191.99,7.21953071]
[1761800787426,2.65097384,192.02,191.99,7.21953071]
[1761800787624,2.65097384,192.02,191.99,12.42813372]
[1761800787834,2.65097384,192.02,192.0,7.21953071]
[1761800788125,7.87953071,192.05,192.01,7.21953071]
[1761800788126,1.99999999,192.05,192.01,7.21953071]
[1761800788318,1.99999999,192.05,192.03,7.21953071]
[1761800788535,1.99999999,192.05,192.04,7.21953071]
[1761800789025,1.99999999,192.08,192.04,7.21953071]
[1761800789222,1.99999999,192.05,192.02,21.252]
[1761800789529,1.99999999,192.05,192.04,7.21953071]
[1761800789712,1.99999999,192.05,192.04,12.42677919]
[1761800790436,1.31070275,192.1,192.04,12.42677919]
[1761800790437,1.99999999,192.08,192.04,13.08677919]
[1761800790727,1.99999999,192.08,192.07,7.21953071]
[1761800790930,1.99999999,192.09,192.07,7.21953071]
[1761800791117,2.19999999,192.13,192.08,7.87953071]
[1761800791437,2.19999999,192.13,192.12,7.21953071]
[1761800792031,2.19999999,192.13,192.12,12.42461086]
[1761800792238,2.19999999,192.13,192.12,13.08461086]
[1761800792819,0.2,192.13,192.12,13.08461086]
[1761800793141,0.2,192.13,192.12,33.67661086]
[1761800793804,1.99999999,192.22,192.13,20.592]
[1761800794005,1.99999999,192.22,192.13,36.09408533]
[1761800794220,1.99999999,192.29,192.17,20.592]
[1761800794424,0.6499922,192.31,192.27,7.21953071]
[1761800794425,1.99999999,192.28,192.27,7.21953071]
[1761800795603,1.99999999,192.29,192.27,7.21953071]
[1761800795834,1.3099584,192.32,192.24,0.66]
[1761800795835,1.99999999,192.3,192.24,0.66]
[1761800796134,1.99999999,192.28,192.24,0.66]
[1761800796339,1.99999999,192.32,192.27,7.21953071]
[1761800796512,1.99999999,192.3,192.29,7.21953071]
[1761800796712,1.99999999,192.32,192.29,7.21953071]
[1761800796933,1.99999999,192.32,192.27,0.66]
[1761800797128,1.99999999,192.32,192.31,7.21953071]
[1761800797334,1.99999999,192.32,192.27,0.66]
[1761800797507,1.99999999,192.32,192.31,7.21953071]
[1761800797709,0.2,192.33,192.28,9.93098926]
[1761800797939,0.2,192.33,192.32,12.41919793]
[1761800798135,0.2,192.33,192.32,13.07919793]
[1761800798341,0.2,192.33,192.32,7.21953071]
[1761800798712,0.2,192.33,192.32,7.87953071]
[1761800799055,0.2,192.33,192.32,28.47153071]
[1761800799739,0.2,192.33,192.32,21.252]
[1761800799935,0.2,192.33,192.32,28.47153071]
[1761800800336,0.2,192.33,192.29,0.14216157]
[1761800800337,2.19999999,192.33,192.29,21.252]
[1761800800640,2.19999999,192.33,192.32,7.21953071]
[1761800801437,0.2,192.33,192.32,7.21953071]
[1761800801735,0.2,192.33,192.32,7.87953071]
[1761800802310,0.2,192.33,192.3,20.592]
[1761800802518,0.2,192.33,192.32,7.21953071]
[1761800802930,2.19999999,192.33,192.32,7.21953071]
[1761800804448,0.2,192.33,192.32,7.87953071]
[1761800806056,2.19999999,192.39,192.32,8.16385385]
[1761800806253,0.2,192.39,192.38,7.21953071]
[1761800806618,2.19999999,192.39,192.38,7.21953071]
[1761800806823,1.99999999,192.38,192.37,7.21953071]
[1761800807221,1.99999999,192.37,192.36,7.21953071]
[1761800807432,1.99999999,192.38,192.36,7.21953071]
[1761800807643,1.99999999,192.38,192.37,7.21953071]
[1761800809135,1.99999999,192.38,192.33,20.592]
[1761800809336,1.99999999,192.38,192.37,7.21953071]
[1761800811019,0.2,192.39,192.37,7.21953071]
[1761800812407,0.89,192.39,192.37,7.21953071]
[1761800812559,1.99999999,192.36,192.32,20.592]
[1761800812757,1.99999999,192.36,192.35,7.21953071]
[1761800813473,0.89,192.39,192.3,0.40157615]
[1761800813474,1.99999999,192.37,192.3,0.40157615]
[1761800813676,1.99999999,192.36,192.35,7.21953071]
[1761800813891,1.99999999,192.36,192.32,20.592]
[1761800814062,1.99999999,192.33,192.3,20.592]
[1761800814269,1.99999999,192.34,192.32,7.21953071]
[1761800814488,1.99999999,192.33,192.32,7.21953071]
[1761800814691,1.99999999,192.33,192.3,20.592]
[1761800814890,1.99999999,192.33,192.32,7.21953071]
[1761800815675,1.99999999,192.33,192.32,7.92953071]
[1761800815872,1.99999999,192.34,192.32,7.21953071]
[1761800816081,1.99999999,192.35,192.33,7.21953071]
[1761800816282,0.2,192.39,192.33,7.92953071]
[1761800816494,1.99999999,192.36,192.33,0.71]
[1761800817584,2.68999999,192.36,192.35,7.21953071]
[1761800817787,1.99999999,192.35,192.33,7.21953071]
[1761800818004,1.99999999,192.34,192.33,7.21953071]
[1761800819835,1.99999999,192.35,192.33,7.21953071]
[1761800820014,1.99999999,192.36,192.34,7.21953071]
[1761800820188,1.99999999,192.38,192.35,7.21953071]
[1761800820387,2.19999999,192.39,192.35,7.21953071]
[1761800820603,2.19999999,192.39,192.22,0.71]
[1761800820604,9.78882769,192.31,192.22,0.71]
[1761800820916,1.99999999,192.3,192.29,7.21953071]
[1761800821616,1.99999999,192.29,192.24,0.28432314]
[1761800821816,1.99999999,192.29,192.24,0.99432314]
[1761800822118,1.99999999,192.3,192.28,7.21953071]
[1761800822316,1.99999999,192.31,192.28,7.21953071]
[1761800822506,1.99999999,192.32,192.3,7.21953071]
[1761800822710,1.99999999,192.32,192.31,7.21953071]
[1761800823335,1.99999999,192.28,192.26,7.21953071]
[1761800823497,1.99999999,192.28,192.27,7.21953071]
[1761800823912,1.99999999,192.3,192.27,7.92953071]
[1761800824236,11.12868472,192.35,192.24,20.85198247]
[1761800824237,1.99999999,192.32,192.29,7.21953071]
[1761800824419,1.99999999,192.33,192.31,27.81153071]
[1761800824630,2.68999999,192.37,192.32,20.592]
[1761800824931,2.68999999,192.37,192.36,7.21953071]
[1761800825734,1.99999999,192.35,192.32,7.21953071]
[1761800825928,1.99999999,192.31,192.3,7.21953071]
[1761800826720,1.99999999,192.32,192.3,7.92953071]
[1761800827034,1.99999999,192.33,192.31,7.21953071]
[1761800827251,1.99999999,192.31,192.29,0.71]
[1761800827540,1.99999999,192.31,192.3,7.21953071]
[1761800827739,1.99999999,192.37,192.32,20.592]
[1761800827944,1.99999999,192.36,192.35,7.21953071]
[1761800828431,1.99999999,192.36,192.34,7.21953071]
[1761800828606,1.99999999,192.35,192.34,7.21953071]
[1761800828809,1.99999999,192.35,192.34,7.92953071]
[1761800829034,0.2,192.39,192.34,28.52153071]
[1761800829241,0.2,192.39,192.38,7.21953071]
[1761800829542,0.2,192.39,192.38,5.19457285]
[1761800830329,0.2,192.39,192.38,5.90457285]
[1761800831843,2.19999999,192.39,192.34,0.85216157]
[1761800832027,2.19999999,192.39,192.38,5.19457285]
[1761800832531,0.2,192.39,192.38,5.90457285]
[1761800833053,0.2,192.39,192.38,21.302]
[1761800833234,0.2,192.39,192.38,26.49657285]
[1761800833948,0.2,192.39,192.36,0.25918492]
[1761800834119,2.19999999,192.39,192.38,5.19457285]
[1761800834535,0.2,192.39,192.38,5.19457285]
[1761800834933,0.2,192.39,192.38,5.87457285]
[1761800835141,0.2,192.39,192.38,5.19457285]
[1761800836822,0.2,192.39,192.38,5.87457285]
[1761800837251,1.99999999,192.44,192.38,11.33178983]
[1761800837437,1.99999999,192.44,192.43,5.19457285]
[1761800837641,1.99999999,192.42,192.41,25.78657285]
[1761800838537,1.99999999,192.44,192.41,26.46657285]
[1761800838734,0.2,192.45,192.43,25.78657285]
[1761800838938,2.19999999,192.45,192.44,5.19457285]
[1761800839126,0.2,192.45,192.44,5.19457285]
[1761800839324,0.2,192.45,192.44,5.87457285]
[1761800839628,0.2,192.45,192.44,6.41766228]
[1761800839829,0.2,192.45,192.43,0.25876629]
[1761800840036,0.2,192.45,192.44,5.19457285]
[1761800840570,2.88999999,192.45,192.44,20.592]
[1761800840727,1.99999999,192.42,192.41,5.19457285]
[1761800840929,2.68999999,192.42,192.41,5.19457285]
[1761800841240,1.99999999,192.42,192.41,5.19457285]
[1761800843253,1.99999999,192.38,192.33,0.7]
[1761800843452,1.99999999,192.38,192.37,5.19457285]
[1761800844142,1.99999999,192.39,192.37,5.19457285]
[1761800844460,1.49999999,192.42,192.38,5.89457285]
[1761800844640,1.49999999,192.42,192.37,20.85121196]
[1761800844641,1.49999999,192.44,192.41,5.19457285]
[1761800844847,1.49999999,192.44,192.31,0.7]
[1761800844848,1.49999999,192.36,192.31,0.7]
[1761800845152,1.49999999,192.36,192.35,5.19457285]
[1761800845458,2.15999999,192.36,192.35,5.19457285]
[1761800845664,1.49999999,192.36,192.35,5.19457285]
[1761800847237,1.49999999,192.37,192.35,5.19457285]
[1761800847556,1.49999999,192.37,192.36,5.19457285]
[1761800847858,1.49999999,192.35,192.34,5.19457285]
[1761800848063,1.49999999,192.33,192.28,0.7]
[1761800848361,1.49999999,192.32,192.3,5.19457285]
[1761800848657,1.49999999,192.32,192.31,5.19457285]
[1761800848862,1.49999999,192.32,192.3,20.592]
[1761800849156,1.49999999,192.32,192.31,5.89457285]
[1761800849337,1.49999999,192.32,192.31,5.19457285]
[1761800850566,1.49999999,192.32,192.3,20.592]
[1761800850865,1.49999999,192.32,192.31,5.19457285]
[1761800851565,1.49999999,192.33,192.31,5.19457285]
[1761800851747,1.49999999,192.33,192.32,25.78657285]
[1761800853460,2.15999999,192.33,192.32,25.78657285]
[1761800853682,2.15999999,192.33,192.28,0.7]
[1761800853880,1.49999999,192.31,192.3,5.19457285]
[1761800854178,1.49999999,192.33,192.3,5.19457285]
[1761800854364,1.49999999,192.33,192.32,5.19457285]
[1761800854875,1.49999999,192.33,192.32,5.89457285]
[1761800855264,1.49999999,192.33,192.32,5.19457285]
[1761800855585,1.49999999,192.37,192.32,26.48657285]
[1761800855877,1.49999999,192.37,192.36,5.19457285]
[1761800856267,1.49999999,192.4,192.39,20.592]
[1761800856467,1.49999999,192.4,192.39,25.78657285]
[1761800856958,2.15999999,192.4,192.39,25.78657285]
[1761800857484,1.49999999,192.39,192.37,5.19457285]
[1761800857785,1.49999999,192.38,192.36,5.19457285]
[1761800857982,2.15999999,192.38,192.36,5.19457285]
[1761800858373,1.49999999,192.36,192.33,21.292]
[1761800858757,1.49999999,192.36,192.35,5.19457285]
[1761800858973,1.49999999,192.37,192.35,5.19457285]
[1761800859280,1.49999999,192.37,192.36,5.89457285]
[1761800859455,1.49999999,192.38,192.36,5.89457285]
[1761800859649,1.49999999,192.38,192.37,5.19457285]
[1761800859851,1.49999999,192.39,192.37,5.19457285]
[1761800860060,1.49999999,192.38,192.33,0.40145448]
[1761800860280,1.49999999,192.38,192.34,0.7]
[1761800860583,0.66,192.42,192.34,0.7]
[1761800860584,1.49999999,192.39,192.34,0.7]
[1761800860883,1.49999999,192.37,192.34,21.292]
[1761800861261,1.49999999,192.37,192.36,5.19457285]
[1761800861656,1.49999999,192.33,192.26,0.95938747]
[1761800861881,1.49999999,192.32,192.26,0.95938747]
[1761800862065,9.78882769,192.34,192.13,0.1]
[1761800862066,1.49999999,192.3,192.28,5.19457285]
[1761800862259,1.49999999,192.3,192.29,5.19457285]
[1761800862461,1.49999999,192.31,192.29,5.19457285]
[1761800862661,1.49999999,192.3,192.29,5.19457285]
[1761800862994,1.49999999,192.29,192.19,10.04864804]
[1761800863154,1.49999999,192.21,192.2,15.48688532]
[1761800863662,1.49999999,192.23,192.2,20.68145817]
[1761800863983,1.49999999,192.23,192.21,5.19457285]
[1761800864183,1.49999999,192.22,192.21,5.19457285]
[1761800864381,1.49999999,192.22,192.2,5.19457285]
[1761800864559,1.49999999,192.21,192.2,5.19457285]
[1761800864756,1.49999999,192.22,192.2,5.19457285]
[1761800864981,1.49999999,192.24,192.21,26.48657285]
[1761800865156,9.78882769,192.3,192.21,26.48657285]
[1761800865157,1.49999999,192.26,192.23,25.78657285]
[1761800865485,1.49999999,192.24,192.23,20.592]
[1761800865656,1.49999999,192.26,192.23,5.19457285]
[1761800865855,1.49999999,192.26,192.25,5.19457285]
[1761800866357,1.49999999,192.28,192.27,20.592]
[1761800866670,1.49999999,192.28,192.27,5.19457285]
[1761800866986,1.49999999,192.29,192.27,5.19457285]
[1761800867284,1.49999999,192.31,192.28,5.19457285]
[1761800867457,1.49999999,192.32,192.3,5.19457285]
[1761800867783,1.49999999,192.34,192.31,5.19457285]
[1761800867959,1.49999999,192.33,192.32,5.19457285]
[1761800868160,1.49999999,192.34,192.27,21.292]
[1761800868368,0.66,192.35,192.27,21.292]
[1761800868369,1.49999999,192.33,192.3,5.19457285]
[1761800868559,1.49999999,192.34,192.3,5.19457285]
[1761800868771,1.49999999,192.29,192.28,20.592]
[1761800869370,0.66,192.32,192.28,5.89457285]
[1761800869371,1.49999999,192.32,192.28,5.89457285]
[1761800869596,1.49999999,192.34,192.31,5.19457285]
[1761800869803,1.49999999,192.35,192.31,5.19457285]
[1761800870179,1.49999999,192.33,192.26,20.592]
[1761800870393,1.49999999,192.32,192.3,5.19457285]
[1761800870697,1.49999999,192.33,192.3,5.19457285]
[1761800870887,1.49999999,192.32,192.3,5.19457285]
[1761800871088,1.49999999,192.34,192.3,5.19457285]
[1761800871294,1.49999999,192.33,192.3,5.19457285]
[1761800871490,1.49999999,192.31,192.29,5.19457285]
[1761800872195,1.49999999,192.29,192.27,5.19457285]
[1761800872416,1.49999999,192.3,192.28,5.19457285]
[1761800872789,1.49999999,192.3,192.29,5.19457285]
[1761800873174,1.49999999,192.3,192.25,20.592]
[1761800873175,1.49999999,192.28,192.25,20.592]
[1761800873493,1.49999999,192.28,192.21,0.92983373]
[1761800873494,1.49999999,192.28,192.23,5.19457285]
[1761800873803,0.7,192.29,192.26,20.592]
[1761800873804,1.49999999,192.27,192.26,20.592]
[1761800874000,1.49999999,192.27,192.22,5.19457285]
[1761800874186,1.49999999,192.25,192.22,5.19457285]
[1761800874388,1.49999999,192.23,192.18,6.93273729]
[1761800874575,1.49999999,192.22,192.19,5.19457285]
[1761800874778,1.49999999,192.22,192.2,25.78657285]
[1761800875579,1.49999999,192.22,192.2,5.19457285]
[1761800876008,1.49999999,192.22,192.18,7.60273729]
[1761800876009,1.49999999,192.22,192.21,20.592]
[1761800876378,1.49999999,192.2,192.19,5.19457285]
[1761800876782,1.49999999,192.2,192.19,25.78657285]
[1761800878102,1.49999999,192.2,192.19,20.592]
[1761800878792,1.49999999,192.2,192.19,25.78657285]
[1761800878989,1.49999999,192.21,192.19,25.78657285]
[1761800879184,0.7,192.24,192.19,25.78657285]
[1761800879185,1.49999999,192.2,192.19,25.78657285]
[1761800879604,1.49999999,192.2,192.19,20.592]
[1761800879785,1.49999999,192.2,192.19,25.78657285]
[1761800880391,1.49999999,192.22,192.21,20.592]
[1761800880583,102.0,192.37,192.21,20.592]
[1761800880584,1.49999999,192.24,192.21,87.38657285]
[1761800880782,1.49999999,192.27,192.22,1.07241468]
[1761800880982,1.49999999,192.26,192.25,20.592]
[1761800881383,1.49999999,192.28,192.22,0.40241468]
[1761800881583,1.49999999,192.27,192.22,5.60476018]
[1761800881798,2.19999999,192.27,192.2,0.40241468]
[1761800882122,1.49999999,192.27,192.26,5.19457285]
[1761800883985,1.49999999,192.28,192.26,5.19457285]
[1761800884197,1.49999999,192.27,192.24,0.67]
[1761800884404,0.6499246,192.33,192.26,5.19457285]
[1761800884405,1.49999999,192.28,192.26,5.19457285]
[1761800884622,1.49999999,192.27,192.26,5.19457285]
[1761800884992,1.49999999,192.28,192.26,5.19457285]
[1761800885315,1.49999999,192.27,192.23,0.26000957]
[1761800885507,1.49999999,192.24,192.21,20.592]
[1761800885888,1.49999999,192.28,192.23,20.592]
[1761800886412,1.49999999,192.27,192.24,0.67]
[1761800886616,1.49999999,192.29,192.27,20.592]
[1761800886790,1.49999999,192.32,192.28,5.19457285]
[1761800886985,20.592,192.39,192.31,5.19457285]
[1761800886986,1.49999999,192.33,192.31,5.19457285]
[1761800887204,1.49999999,192.34,192.32,5.19457285]
[1761800887438,1.49999999,192.37,192.36,20.592]
[1761800887716,2.73504983,192.36,192.35,20.592]
[1761800887912,1.49999999,192.37,192.35,20.592]
[1761800888109,1.49999999,192.35,192.33,20.592]
[1761800888310,1.49999999,192.38,192.33,21.262]
[1761800888515,1.3495531,192.44,192.34,0.81216157]
[1761800888516,1.49999999,192.42,192.34,0.81216157]
[1761800888695,0.7,192.44,192.41,5.19457285]
[1761800888696,2.19999999,192.44,192.41,5.19457285]
[1761800888891,1.49999999,192.44,192.43,5.19457285]
[1761800889096,1.49999999,192.44,192.37,0.2589686]
[1761800889097,1.69999999,192.44,192.42,5.19457285]
[1761800889339,0.7,192.43,192.4,5.19457285]
[1761800889504,0.99999999,192.39,192.34,0.81216157]
[1761800889688,0.7,192.43,192.38,5.19457285]
[1761800889689,0.99999999,192.4,192.38,5.19457285]
[1761800889895,0.99999999,192.44,192.39,5.19457285]
[1761800890122,0.99999999,192.43,192.42,5.19457285]
[1761800890617,0.99999999,192.43,192.37,0.81216157]
[1761800890824,0.99999999,192.43,192.42,5.19457285]
[1761800891026,0.99999999,192.43,192.38,0.25911726]
[1761800891207,0.99999999,192.39,192.38,5.19457285]
[1761800891410,0.99999999,192.38,192.33,1.07144082]
[1761800891599,0.99999999,192.37,192.3,0.25940111]
[1761800892118,0.99999999,192.35,192.32,20.592]
[1761800892521,0.99999999,192.35,192.32,21.262]
[1761800892707,0.99999999,192.35,192.34,7.18659982]
[1761800893688,0.99999999,192.35,192.29,0.40172482]
[1761800893897,0.99999999,192.35,192.28,0.14216157]
[1761800893898,0.99999999,192.34,192.32,7.18659982]
[1761800894308,13.03445797,192.38,192.23,5.46177364]
[1761800894309,0.99999999,192.31,192.23,5.46177364]
[1761800894511,0.99999999,192.31,192.3,7.18659982]
[1761800894714,0.99999999,192.33,192.3,7.18659982]
[1761800894932,0.99999999,192.32,192.31,0.7]
[1761800895224,0.99999999,192.33,192.29,0.25967146]
[1761800895400,0.99999999,192.34,192.29,0.25967146]
[1761800895805,0.99999999,192.33,192.29,0.95967146]
[1761800896005,5.84785308,192.38,192.31,7.18659982]
[1761800896006,0.99999999,192.32,192.31,7.18659982]
[1761800896593,0.99999999,192.33,192.31,7.88659982]
[1761800896904,0.99999999,192.34,192.29,20.592]
[1761800897103,0.99999999,192.34,192.33,7.18659982]
[1761800897326,9.78882769,192.4,192.33,7.18659982]
[1761800897327,0.99999999,192.36,192.33,7.18659982]
[1761800897493,0.99999999,192.36,192.35,7.18659982]
[1761800898391,0.99999999,192.37,192.35,7.18659982]
[1761800898809,0.99999999,192.38,192.36,7.18659982]
[1761800899008,0.99999999,192.38,192.37,7.18659982]
[1761800899218,0.99999999,192.39,192.37,7.18659982]
[1761800899413,0.99999999,192.44,192.38,7.4457983]
[1761800899733,0.99999999,192.44,192.42,7.18659982]
[1761800899937,0.99999999,192.43,192.42,7.18659982]
[1761800900937,0.99999999,192.43,192.38,20.592]
[1761800900938,0.99999999,192.39,192.38,20.592]
[1761800901313,1.70999999,192.39,192.38,20.592]
[1761800901510,0.99999999,192.37,192.35,27.77859982]
[1761800901832,7.18659982,192.36,192.28,0.25940105]
[1761800902126,0.99999999,192.32,192.31,7.18659982]
[1761800902495,0.99999999,192.34,192.31,7.18659982]
[1761800902726,0.99999999,192.32,192.31,7.18659982]
[1761800903298,0.99999999,192.32,192.27,0.14216157]
[1761800903299,0.99999999,192.3,192.27,0.14216157]
[1761800903602,0.99999999,192.29,192.27,7.18659982]
[1761800903811,0.99999999,192.27,192.24,0.25988783]
[1761800904137,0.99999999,192.27,192.25,27.77859982]
[1761800904320,0.99999999,192.27,192.26,7.18659982]
[1761800906103,0.99999999,192.27,192.25,20.592]
[1761800906316,0.99999999,192.27,192.26,7.18659982]
[1761800907339,0.99999999,192.24,192.19,0.40223878]
[1761800907545,7.18659982,192.29,192.22,7.18659982]
[1761800907546,0.99999999,192.23,192.22,7.18659982]
[1761800908233,0.99999999,192.23,192.21,7.18659982]
[1761800908422,0.99999999,192.22,192.21,7.18659982]
[1761800908827,0.99999999,192.22,192.2,0.84216157]
[1761800909024,0.99999999,192.22,192.21,7.18659982]
[1761800909428,0.99999999,192.24,192.21,7.88659982]
[1761800909626,0.99999999,192.24,192.23,7.18659982]
[1761800909816,0.99999999,192.23,192.22,7.18659982]
[1761800910413,0.99999999,192.24,192.22,7.18659982]
[1761800910617,0.99999999,192.24,192.23,7.18659982]
[1761800910818,0.99999999,192.25,192.23,7.18659982]
[1761800911054,0.99999999,192.26,192.24,7.88659982]
[1761800911236,0.99999999,192.28,192.25,7.18659982]
[1761800911547,0.99999999,192.28,192.27,7.18659982]
[1761800911717,0.99999999,192.28,192.26,7.18659982]
[1761800911718,1.67999999,192.28,192.26,7.18659982]
[1761800911922,0.99999999,192.28,192.26,7.18659982]
[1761800912521,0.99999999,192.27,192.26,7.18659982]
[1761800914951,0.99999999,192.29,192.26,7.18659982]
[1761800915159,0.99999999,192.34,192.28,27.77859982]
[1761800915361,0.99999999,192.33,192.3,7.18659982]
[1761800915525,0.99999999,192.34,192.3,7.18659982]
[1761800915724,0.99999999,192.32,192.31,7.18659982]
[1761800916252,0.99999999,192.35,192.31,7.18659982]
[1761800916470,0.99999999,192.35,192.33,7.18659982]
[1761800916820,0.99999999,192.37,192.34,7.18659982]
[1761800917062,1.67999999,192.37,192.34,7.18659982]